[Event "Titled Tuesday Blitz December 13 Late 2022"]
[White "Suarez Uriel, Adrian"]
[Black "Moroni, Luca Jr"]
[WhiteFideId "22230874"]
[BlackFideId "865834"]
[WhiteElo "2444"]
[BlackElo "2840"]
[Result "1/2-1/2"]
[Round "01"]
[TimeControl "180+1"]
[Date "2022.12.14"]
[WhiteClock "0:00:08"]
[BlackClock "0:00:11"]

1. e4 {[%clk 0:02:59]}  d6 {[%clk 0:03:00]} 2. d4 {[%clk 0:02:58]}  e5 {[%clk 0:03:01]} 3. Nf3 {[%clk 0:02:55]}  exd4 {[%clk 0:03:01]} 4. Nxd4 {[%clk 0:02:55]}  Nf6 {[%clk 0:03:02]} 5. Bd3 {[%clk 0:02:54]}  Be7 {[%clk 0:03:02]} 6. O-O {[%clk 0:02:53]}  O-O {[%clk 0:03:02]} 7. c4 {[%clk 0:02:52]}  Re8 {[%clk 0:03:02]} 8. Nc3 {[%clk 0:02:52]}  Bf8 {[%clk 0:03:03]} 9. Re1 {[%clk 0:02:51]}  c6 {[%clk 0:03:00]} 10. Bg5 {[%clk 0:02:50]}  h6 {[%clk 0:02:59]} 11. Bh4 {[%clk 0:02:49]}  a5 {[%clk 0:02:59]} 12. h3 {[%clk 0:02:47]}  Na6 {[%clk 0:02:59]} 13. Qf3 {[%clk 0:02:46]}  Nc5 {[%clk 0:02:54]} 14. Bc2 {[%clk 0:02:46]}  Be7 {[%clk 0:02:52]} 15. Rad1 {[%clk 0:02:45]}  Qc7 {[%clk 0:02:44]} 16. Nf5 {[%clk 0:02:36]}  Bxf5 {[%clk 0:02:44]} 17. Qxf5 {[%clk 0:02:36]}  g6 {[%clk 0:02:30]} 18. Qf4 {[%clk 0:02:01]}  Kg7 {[%clk 0:02:22]} 19. Qf3 {[%clk 0:01:27]}  Rad8 {[%clk 0:02:19]} 20. Bg3 {[%clk 0:01:27]}  Nfd7 {[%clk 0:02:09]} 21. a3 {[%clk 0:01:19]}  Ne5 {[%clk 0:01:56]} 22. Qe3 {[%clk 0:01:20]}  Bf6 {[%clk 0:01:41]} 23. Bxe5 {[%clk 0:00:52]}  Bxe5 {[%clk 0:01:35]} 24. f4 {[%clk 0:00:52]}  Bxc3 {[%clk 0:01:01]} 25. Qxc3+ {[%clk 0:00:51]}  Kg8 {[%clk 0:01:01]} 26. Qf6 {[%clk 0:00:34]}  Qe7 {[%clk 0:00:57]} 27. Qxe7 {[%clk 0:00:34]}  Rxe7 {[%clk 0:00:58]} 28. e5 {[%clk 0:00:35]}  d5 {[%clk 0:00:45]} 29. cxd5 {[%clk 0:00:34]}  cxd5 {[%clk 0:00:46]} 30. b4 {[%clk 0:00:29]}  axb4 {[%clk 0:00:47]} 31. axb4 {[%clk 0:00:29]}  Ne6 {[%clk 0:00:48]} 32. g3 {[%clk 0:00:29]}  Rc7 {[%clk 0:00:47]} 33. Bb3 {[%clk 0:00:21]}  Rc3 {[%clk 0:00:45]} 34. Bxd5 {[%clk 0:00:21]}  Rxg3+ {[%clk 0:00:45]} 35. Kh2 {[%clk 0:00:22]}  Rc3 {[%clk 0:00:29]} 36. Bxe6 {[%clk 0:00:22]}  Rxd1 {[%clk 0:00:30]} 37. Rxd1 {[%clk 0:00:22]}  fxe6 {[%clk 0:00:30]} 38. Rd6 {[%clk 0:00:23]}  Rc4 {[%clk 0:00:28]} 39. Rxe6 {[%clk 0:00:22]}  Kf7 {[%clk 0:00:26]} 40. Rf6+ {[%clk 0:00:21]}  Kg7 {[%clk 0:00:26]} 41. b5 {[%clk 0:00:22]}  Rb4 {[%clk 0:00:27]} 42. b6 {[%clk 0:00:22]}  g5 {[%clk 0:00:27]} 43. fxg5 {[%clk 0:00:21]}  hxg5 {[%clk 0:00:28]} 44. Rd6 {[%clk 0:00:20]}  Rb5 {[%clk 0:00:27]} 45. Rd7+ {[%clk 0:00:19]}  Kg6 {[%clk 0:00:27]} 46. Rxb7 {[%clk 0:00:20]}  Rxe5 {[%clk 0:00:27]} 47. Kg3 {[%clk 0:00:20]}  Rb5 {[%clk 0:00:27]} 48. Kf3 {[%clk 0:00:21]}  Rb3+ {[%clk 0:00:26]} 49. Kg4 {[%clk 0:00:20]}  Rb4+ {[%clk 0:00:27]} 50. Kg3 {[%clk 0:00:20]}  Rb3+ {[%clk 0:00:27]} 51. Kg2 {[%clk 0:00:21]}  Kf6 {[%clk 0:00:25]} 52. Rb8 {[%clk 0:00:20]}  Kg7 {[%clk 0:00:25]} 53. Kh2 {[%clk 0:00:17]}  Kg6 {[%clk 0:00:24]} 54. Kg2 {[%clk 0:00:16]}  Kg7 {[%clk 0:00:23]} 55. Kh2 {[%clk 0:00:17]}  Kf6 {[%clk 0:00:23]} 56. Kg2 {[%clk 0:00:17]}  Kg6 {[%clk 0:00:20]} 57. Rb7 {[%clk 0:00:16]}  Kf5 {[%clk 0:00:17]} 58. Rb8 {[%clk 0:00:12]}  Kf6 {[%clk 0:00:17]} 59. Rh8 {[%clk 0:00:11]}  Ke5 {[%clk 0:00:13]} 60. Rh6 {[%clk 0:00:11]}  Kf4 {[%clk 0:00:12]} 61. Rf6+ {[%clk 0:00:10]}  Ke5 {[%clk 0:00:12]} 62. Rc6 {[%clk 0:00:11]}  Kf5 {[%clk 0:00:12]} 63. Rc5+ {[%clk 0:00:07]}  Kf4 {[%clk 0:00:11]} 64. Rc4+ {[%clk 0:00:07]}  Ke5 {[%clk 0:00:12]} 65. Rc6 {[%clk 0:00:08]}  Kf5 {[%clk 0:00:12]} 66. Rd6 {[%clk 0:00:08]}  Kf4 {[%clk 0:00:11]} 67. Rf6+ {[%clk 0:00:08]}  Ke5 {[%clk 0:00:11]} 68. Rc6 {[%clk 0:00:08]} 1/2-1/2


[Site "https://www.chess.com"]

[Event "Titled Tuesday Blitz December 13 Late 2022"]
[White "Suder, Jakub"]
[Black "Polster, Christian"]
[WhiteFideId "1195310"]
[BlackFideId "12965081"]
[WhiteElo "2245"]
[BlackElo "2195"]
[Result "1-0"]
[Round "01"]
[TimeControl "180+1"]
[Date "2022.12.14"]
[WhiteClock "0:01:24"]
[BlackClock "0:00:16"]

1. d4 {[%clk 0:03:00]}  d5 {[%clk 0:02:09]} 2. c4 {[%clk 0:03:00]}  e6 {[%clk 0:02:04]} 3. Nc3 {[%clk 0:03:00]}  c6 {[%clk 0:02:03]} 4. e4 {[%clk 0:03:00]}  dxe4 {[%clk 0:02:02]} 5. Nxe4 {[%clk 0:03:00]}  Bb4+ {[%clk 0:02:01]} 6. Bd2 {[%clk 0:03:01]}  Qxd4 {[%clk 0:02:00]} 7. Bxb4 {[%clk 0:03:01]}  Qxe4+ {[%clk 0:01:59]} 8. Be2 {[%clk 0:03:01]}  Na6 {[%clk 0:01:59]} 9. Ba5 {[%clk 0:03:00]}  b6 {[%clk 0:01:59]} 10. Qd6 {[%clk 0:03:00]}  Bd7 {[%clk 0:01:51]} 11. Rd1 {[%clk 0:02:59]}  O-O-O {[%clk 0:01:39]} 12. Bc3 {[%clk 0:02:58]}  Nf6 {[%clk 0:01:28]} 13. Nf3 {[%clk 0:02:57]}  c5 {[%clk 0:00:42]} 14. Qg3 {[%clk 0:02:24]}  Ba4 {[%clk 0:00:26]} 15. Nd2 {[%clk 0:02:06]}  Qg6 {[%clk 0:00:20]} 16. Qf3 {[%clk 0:01:48]}  Bxd1 {[%clk 0:00:19]} 17. Qa8+ {[%clk 0:01:46]}  Nb8 {[%clk 0:00:19]} 18. Bxd1 {[%clk 0:01:40]}  Qf5 {[%clk 0:00:17]} 19. Bf3 {[%clk 0:01:35]}  Rd7 {[%clk 0:00:17]} 20. a4 {[%clk 0:01:26]}  Rhd8 {[%clk 0:00:17]} 21. O-O {[%clk 0:01:25]}  Rxd2 {[%clk 0:00:16]} 22. Qb7# {[%clk 0:01:24]} 1-0


[Site "https://www.chess.com"]

[Event "Titled Tuesday Blitz December 13 Late 2022"]
[White "Tang, Andrew"]
[Black "Mazurkiewicz, Michal"]
[WhiteFideId "2059630"]
[BlackFideId "1124943"]
[WhiteElo "2582"]
[BlackElo "2081"]
[Result "1-0"]
[Round "01"]
[TimeControl "180+1"]
[Date "2022.12.13"]
[WhiteClock "0:00:32"]
[BlackClock "0:00:26"]

1. Nh3 {[%clk 0:02:58]}  Nf6 {[%clk 0:02:59]} 2. g3 {[%clk 0:02:56]}  g6 {[%clk 0:02:59]} 3. Bg2 {[%clk 0:02:57]}  Bg7 {[%clk 0:03:00]} 4. O-O {[%clk 0:02:57]}  O-O {[%clk 0:03:00]} 5. f4 {[%clk 0:02:57]}  d6 {[%clk 0:03:00]} 6. d3 {[%clk 0:02:57]}  e5 {[%clk 0:02:59]} 7. e4 {[%clk 0:02:57]}  Nc6 {[%clk 0:02:56]} 8. f5 {[%clk 0:02:57]}  d5 {[%clk 0:02:53]} 9. Qe1 {[%clk 0:02:51]}  Nd4 {[%clk 0:02:41]} 10. Na3 {[%clk 0:02:51]}  gxf5 {[%clk 0:02:36]} 11. c3 {[%clk 0:02:50]}  dxe4 {[%clk 0:02:27]} 12. cxd4 {[%clk 0:02:29]}  Qxd4+ {[%clk 0:02:26]} 13. Be3 {[%clk 0:02:27]}  Qxd3 {[%clk 0:02:26]} 14. Rd1 {[%clk 0:02:26]}  Qa6 {[%clk 0:02:25]} 15. Nf2 {[%clk 0:02:23]}  Be6 {[%clk 0:02:23]} 16. Bg5 {[%clk 0:02:11]}  Nd5 {[%clk 0:02:10]} 17. g4 {[%clk 0:02:02]}  f4 {[%clk 0:01:57]} 18. Nxe4 {[%clk 0:01:46]}  Ne3 {[%clk 0:01:56]} 19. Nf6+ {[%clk 0:01:40]}  Bxf6 {[%clk 0:01:46]} 20. Bxf6 {[%clk 0:01:40]}  Bxg4 {[%clk 0:01:45]} 21. Qh4 {[%clk 0:01:40]}  Qxf6 {[%clk 0:01:02]} 22. Qxf6 {[%clk 0:01:35]}  Bxd1 {[%clk 0:01:02]} 23. Be4 {[%clk 0:00:55]}  Bh5 {[%clk 0:00:45]} 24. Qxe5 {[%clk 0:00:44]}  Bg6 {[%clk 0:00:45]} 25. Bxg6 {[%clk 0:00:42]}  fxg6 {[%clk 0:00:40]} 26. Rxf4 {[%clk 0:00:40]}  Nf5 {[%clk 0:00:35]} 27. Qxc7 {[%clk 0:00:38]}  Rac8 {[%clk 0:00:32]} 28. Qxb7 {[%clk 0:00:33]}  Rc1+ {[%clk 0:00:33]} 29. Kf2 {[%clk 0:00:33]}  Rd1 {[%clk 0:00:26]} 30. Qb3+ {[%clk 0:00:32]} 1-0


[Site "https://www.chess.com"]

[Event "Titled Tuesday Blitz December 13 Late 2022"]
[White "Toncheva, Nadya"]
[Black "Joubert, Dantelle"]
[WhiteFideId "2924056"]
[BlackFideId "14310813"]
[WhiteElo "2101"]
[BlackElo "1507"]
[Result "1-0"]
[Round "01"]
[TimeControl "180+1"]
[Date "2022.12.14"]
[WhiteClock "0:00:21"]
[BlackClock "0:00:01"]

1. e4 {[%clk 0:03:00]}  e5 {[%clk 0:02:58]} 2. Nf3 {[%clk 0:02:59]}  Nc6 {[%clk 0:02:53]} 3. Bb5 {[%clk 0:02:59]}  Nf6 {[%clk 0:02:52]} 4. O-O {[%clk 0:02:59]}  Nxe4 {[%clk 0:02:52]} 5. Re1 {[%clk 0:02:58]}  Nd6 {[%clk 0:02:51]} 6. Nxe5 {[%clk 0:02:57]}  Be7 {[%clk 0:02:51]} 7. Bf1 {[%clk 0:02:57]}  O-O {[%clk 0:02:44]} 8. Nxc6 {[%clk 0:02:56]}  dxc6 {[%clk 0:02:43]} 9. d4 {[%clk 0:02:57]}  Bf5 {[%clk 0:02:41]} 10. c4 {[%clk 0:02:53]}  Bg6 {[%clk 0:02:36]} 11. Nc3 {[%clk 0:02:53]}  Bf6 {[%clk 0:02:33]} 12. Be3 {[%clk 0:02:44]}  Nf5 {[%clk 0:02:32]} 13. d5 {[%clk 0:02:27]}  Bxc3 {[%clk 0:02:10]} 14. bxc3 {[%clk 0:02:28]}  Nxe3 {[%clk 0:02:04]} 15. Rxe3 {[%clk 0:02:26]}  Qf6 {[%clk 0:02:02]} 16. Qd2 {[%clk 0:02:21]}  Rad8 {[%clk 0:01:59]} 17. g3 {[%clk 0:02:07]}  Rd7 {[%clk 0:01:40]} 18. Bg2 {[%clk 0:02:03]}  Rfd8 {[%clk 0:01:39]} 19. Qe2 {[%clk 0:02:02]}  h5 {[%clk 0:01:14]} 20. h4 {[%clk 0:02:00]}  b6 {[%clk 0:01:04]} 21. Re1 {[%clk 0:01:58]}  c5 {[%clk 0:00:45]} 22. Re8+ {[%clk 0:01:53]}  Kh7 {[%clk 0:00:44]} 23. Rxd8 {[%clk 0:01:39]}  Rxd8 {[%clk 0:00:43]} 24. Qe5 {[%clk 0:01:26]}  Qxe5 {[%clk 0:00:36]} 25. Rxe5 {[%clk 0:01:27]}  Rd7 {[%clk 0:00:35]} 26. Bh3 {[%clk 0:01:26]}  Rd6 {[%clk 0:00:28]} 27. Re7 {[%clk 0:01:22]}  c6 {[%clk 0:00:21]} 28. Bg2 {[%clk 0:01:22]}  cxd5 {[%clk 0:00:17]} 29. Bxd5 {[%clk 0:01:21]}  a5 {[%clk 0:00:16]} 30. Kg2 {[%clk 0:01:13]}  f6 {[%clk 0:00:15]} 31. Rb7 {[%clk 0:00:59]}  Kh6 {[%clk 0:00:14]} 32. Rb8 {[%clk 0:00:59]}  Kh7 {[%clk 0:00:14]} 33. Kf3 {[%clk 0:00:56]}  Bb1 {[%clk 0:00:11]} 34. a3 {[%clk 0:00:55]}  Bc2 {[%clk 0:00:11]} 35. Kf4 {[%clk 0:00:43]}  Kg6 {[%clk 0:00:08]} 36. Rb7 {[%clk 0:00:36]}  Bd3 {[%clk 0:00:06]} 37. f3 {[%clk 0:00:34]}  Kh6 {[%clk 0:00:06]} 38. Ke3 {[%clk 0:00:31]}  Bf5 {[%clk 0:00:05]} 39. Rb8 {[%clk 0:00:24]}  Kh7 {[%clk 0:00:04]} 40. Kf4 {[%clk 0:00:22]}  Bd3 {[%clk 0:00:03]} 41. g4 {[%clk 0:00:21]}  hxg4 {[%clk 0:00:01]} 42. fxg4 {[%clk 0:00:21]} 1-0


[Site "https://www.chess.com"]

[Event "Titled Tuesday Blitz December 13 Late 2022"]
[White "Urazayev, Arystanbek"]
[Black "Donskov, Anatoly"]
[WhiteFideId "13709810"]
[BlackFideId "24143413"]
[WhiteElo "2761"]
[BlackElo "2411"]
[Result "1-0"]
[Round "01"]
[TimeControl "180+1"]
[Date "2022.12.14"]
[WhiteClock "0:00:51"]
[BlackClock "0:00:13"]

1. e4 {[%clk 0:03:00]}  c5 {[%clk 0:02:59]} 2. Nf3 {[%clk 0:03:01]}  Nc6 {[%clk 0:02:59]} 3. Bb5 {[%clk 0:03:00]}  g6 {[%clk 0:03:00]} 4. O-O {[%clk 0:03:01]}  Bg7 {[%clk 0:02:59]} 5. c3 {[%clk 0:03:01]}  Nf6 {[%clk 0:02:59]} 6. e5 {[%clk 0:03:02]}  Nd5 {[%clk 0:03:00]} 7. d4 {[%clk 0:03:03]}  cxd4 {[%clk 0:03:00]} 8. cxd4 {[%clk 0:03:04]}  O-O {[%clk 0:03:00]} 9. Nc3 {[%clk 0:03:04]}  Nxc3 {[%clk 0:03:01]} 10. bxc3 {[%clk 0:03:05]}  d6 {[%clk 0:03:01]} 11. Re1 {[%clk 0:03:06]}  dxe5 {[%clk 0:03:02]} 12. Bxc6 {[%clk 0:03:07]}  bxc6 {[%clk 0:03:02]} 13. Nxe5 {[%clk 0:03:07]}  Bxe5 {[%clk 0:02:29]} 14. Rxe5 {[%clk 0:03:06]}  f6 {[%clk 0:02:29]} 15. Re1 {[%clk 0:03:01]}  Qd6 {[%clk 0:02:09]} 16. a4 {[%clk 0:03:01]}  Re8 {[%clk 0:02:04]} 17. Ba3 {[%clk 0:03:01]}  Qc7 {[%clk 0:02:05]} 18. Bc5 {[%clk 0:02:57]}  Rb8 {[%clk 0:01:52]} 19. h4 {[%clk 0:02:57]}  Bf5 {[%clk 0:01:48]} 20. Qd2 {[%clk 0:02:56]}  Kg7 {[%clk 0:01:48]} 21. Re3 {[%clk 0:02:56]}  Rb1+ {[%clk 0:01:44]} 22. Rxb1 {[%clk 0:02:56]}  Bxb1 {[%clk 0:01:45]} 23. Qe1 {[%clk 0:02:56]}  Ba2 {[%clk 0:01:42]} 24. Bxe7 {[%clk 0:02:56]}  Kf7 {[%clk 0:01:31]} 25. Bc5 {[%clk 0:02:56]}  Be6 {[%clk 0:01:28]} 26. h5 {[%clk 0:02:36]}  Qd7 {[%clk 0:01:27]} 27. h6 {[%clk 0:02:31]}  Bc4 {[%clk 0:00:52]} 28. Rxe8 {[%clk 0:02:18]}  Qxe8 {[%clk 0:00:53]} 29. Qxe8+ {[%clk 0:02:18]}  Kxe8 {[%clk 0:00:54]} 30. Bxa7 {[%clk 0:02:19]}  Kf7 {[%clk 0:00:53]} 31. f3 {[%clk 0:02:15]}  g5 {[%clk 0:00:53]} 32. Bc5 {[%clk 0:02:15]}  Kg6 {[%clk 0:00:52]} 33. Bf8 {[%clk 0:02:14]}  Kf7 {[%clk 0:00:44]} 34. Bg7 {[%clk 0:02:13]}  Ke6 {[%clk 0:00:45]} 35. Kf2 {[%clk 0:02:11]}  Ba6 {[%clk 0:00:45]} 36. g4 {[%clk 0:02:02]}  Bc4 {[%clk 0:00:40]} 37. a5 {[%clk 0:02:02]}  Ba6 {[%clk 0:00:39]} 38. Bf8 {[%clk 0:01:59]}  Bc4 {[%clk 0:00:39]} 39. Bc5 {[%clk 0:02:00]}  Ba6 {[%clk 0:00:38]} 40. Bb6 {[%clk 0:02:00]}  Bc4 {[%clk 0:00:38]} 41. Bd8 {[%clk 0:02:01]}  Ba6 {[%clk 0:00:38]} 42. Ke3 {[%clk 0:02:00]}  Bc4 {[%clk 0:00:36]} 43. Ke4 {[%clk 0:02:00]}  Ba6 {[%clk 0:00:35]} 44. d5+ {[%clk 0:01:58]}  cxd5+ {[%clk 0:00:35]} 45. Kd4 {[%clk 0:01:59]}  Be2 {[%clk 0:00:32]} 46. Ke3 {[%clk 0:01:49]}  Ba6 {[%clk 0:00:32]} 47. Bb6 {[%clk 0:01:49]}  Bb5 {[%clk 0:00:32]} 48. Bd4 {[%clk 0:01:28]}  Ba6 {[%clk 0:00:32]} 49. Kd2 {[%clk 0:01:28]}  Bb5 {[%clk 0:00:31]} 50. Kc2 {[%clk 0:01:28]}  f5 {[%clk 0:00:31]} 51. Kd2 {[%clk 0:01:26]}  fxg4 {[%clk 0:00:29]} 52. fxg4 {[%clk 0:01:27]}  Ba6 {[%clk 0:00:30]} 53. Ke3 {[%clk 0:01:26]}  Bb5 {[%clk 0:00:26]} 54. Bb6 {[%clk 0:01:25]}  Ba6 {[%clk 0:00:20]} 55. Bd8 {[%clk 0:01:24]}  Kd6 {[%clk 0:00:18]} 56. Bxg5 {[%clk 0:01:22]}  Kc6 {[%clk 0:00:18]} 57. Kd4 {[%clk 0:01:20]}  Be2 {[%clk 0:00:17]} 58. Be3 {[%clk 0:00:54]}  Bxg4 {[%clk 0:00:15]} 59. Ke5 {[%clk 0:00:55]}  Be2 {[%clk 0:00:14]} 60. Ke6 {[%clk 0:00:52]}  Bd3 {[%clk 0:00:15]} 61. Kf7 {[%clk 0:00:52]}  Be4 {[%clk 0:00:13]} 62. a6 {[%clk 0:00:51]}  Bd3 {[%clk 0:00:13]} 63. a7 {[%clk 0:00:51]}  Kb7 {[%clk 0:00:13]} 64. Bd4 {[%clk 0:00:51]}  Be4 {[%clk 0:00:13]} 65. Ke6 {[%clk 0:00:51]}  Bf3 {[%clk 0:00:12]} 66. Kf5 {[%clk 0:00:50]}  Ka8 {[%clk 0:00:13]} 67. Kf4 {[%clk 0:00:51]}  Be4 {[%clk 0:00:13]} 68. c4 {[%clk 0:00:51]} 1-0


[Site "https://www.chess.com"]

[Event "Titled Tuesday Blitz December 13 Late 2022"]
[White "Van Dael, Siem"]
[Black "Yedidia, Daniel"]
[WhiteFideId "1049771"]
[BlackFideId "30905907"]
[WhiteElo "2336"]
[BlackElo "2550"]
[Result "1-0"]
[Round "01"]
[TimeControl "180+1"]
[Date "2022.12.14"]
[WhiteClock "0:00:06"]
[BlackClock "0:00:03"]

1. d4 {[%clk 0:02:55]}  Nf6 {[%clk 0:02:58]} 2. c4 {[%clk 0:02:55]}  e6 {[%clk 0:02:58]} 3. Nf3 {[%clk 0:02:56]}  b6 {[%clk 0:02:58]} 4. a3 {[%clk 0:02:56]}  c5 {[%clk 0:02:55]} 5. d5 {[%clk 0:02:56]}  exd5 {[%clk 0:02:51]} 6. cxd5 {[%clk 0:02:57]}  d6 {[%clk 0:02:51]} 7. Nc3 {[%clk 0:02:57]}  Bf5 {[%clk 0:02:49]} 8. e4 {[%clk 0:02:56]}  Bg6 {[%clk 0:02:43]} 9. e5 {[%clk 0:02:42]}  dxe5 {[%clk 0:02:41]} 10. Bb5+ {[%clk 0:02:41]}  Nbd7 {[%clk 0:02:36]} 11. Nxe5 {[%clk 0:02:41]}  Bd6 {[%clk 0:02:30]} 12. Nc4 {[%clk 0:02:34]}  O-O {[%clk 0:02:25]} 13. O-O {[%clk 0:02:22]}  Qc7 {[%clk 0:02:11]} 14. Nxd6 {[%clk 0:01:49]}  Qxd6 {[%clk 0:02:12]} 15. Bc6 {[%clk 0:01:50]}  Rac8 {[%clk 0:02:03]} 16. Nb5 {[%clk 0:01:45]}  Qb8 {[%clk 0:02:02]} 17. g3 {[%clk 0:01:37]}  Bh5 {[%clk 0:01:00]} 18. f3 {[%clk 0:01:11]}  Ne5 {[%clk 0:00:53]} 19. Bf4 {[%clk 0:01:11]}  a6 {[%clk 0:00:48]} 20. Nc3 {[%clk 0:00:51]}  Rfd8 {[%clk 0:00:41]} 21. g4 {[%clk 0:00:46]}  Bg6 {[%clk 0:00:39]} 22. Re1 {[%clk 0:00:46]}  Rxc6 {[%clk 0:00:30]} 23. Bxe5 {[%clk 0:00:43]}  Qc8 {[%clk 0:00:23]} 24. dxc6 {[%clk 0:00:21]}  Rxd1 {[%clk 0:00:24]} 25. Raxd1 {[%clk 0:00:21]}  Qxc6 {[%clk 0:00:20]} 26. Rd8+ {[%clk 0:00:20]}  Ne8 {[%clk 0:00:20]} 27. Bg3 {[%clk 0:00:18]}  f6 {[%clk 0:00:21]} 28. Ne4 {[%clk 0:00:14]}  h5 {[%clk 0:00:08]} 29. h3 {[%clk 0:00:11]}  hxg4 {[%clk 0:00:08]} 30. hxg4 {[%clk 0:00:10]}  c4 {[%clk 0:00:09]} 31. Kg2 {[%clk 0:00:07]}  b5 {[%clk 0:00:09]} 32. Nd6 {[%clk 0:00:08]}  Kf8 {[%clk 0:00:08]} 33. Nxe8 {[%clk 0:00:06]}  Bxe8 {[%clk 0:00:08]} 34. Rdxe8+ {[%clk 0:00:04]}  Kf7 {[%clk 0:00:09]} 35. R8e7+ {[%clk 0:00:04]}  Kg6 {[%clk 0:00:10]} 36. R7e2 {[%clk 0:00:04]}  c3 {[%clk 0:00:09]} 37. bxc3 {[%clk 0:00:04]}  Qxc3 {[%clk 0:00:10]} 38. Re3 {[%clk 0:00:05]}  Qb2+ {[%clk 0:00:11]} 39. R1e2 {[%clk 0:00:05]}  Qb1 {[%clk 0:00:11]} 40. Bf4 {[%clk 0:00:05]}  a5 {[%clk 0:00:11]} 41. Bd6 {[%clk 0:00:05]}  Qa1 {[%clk 0:00:10]} 42. Bf8 {[%clk 0:00:05]}  Kf7 {[%clk 0:00:10]} 43. Bc5 {[%clk 0:00:04]}  Qc1 {[%clk 0:00:09]} 44. Re7+ {[%clk 0:00:04]}  Kg6 {[%clk 0:00:10]} 45. Bd6 {[%clk 0:00:05]}  Qc6 {[%clk 0:00:09]} 46. R7e6 {[%clk 0:00:05]}  Qc4 {[%clk 0:00:08]} 47. Kg3 {[%clk 0:00:05]}  b4 {[%clk 0:00:08]} 48. axb4 {[%clk 0:00:05]}  axb4 {[%clk 0:00:09]} 49. R6e4 {[%clk 0:00:05]}  Qd3 {[%clk 0:00:07]} 50. Bxb4 {[%clk 0:00:05]}  Qd1 {[%clk 0:00:08]} 51. Bc5 {[%clk 0:00:04]}  Qf1 {[%clk 0:00:07]} 52. Re8 {[%clk 0:00:03]}  Kh7 {[%clk 0:00:06]} 53. R8e7 {[%clk 0:00:03]}  Kg6 {[%clk 0:00:06]} 54. Bd4 {[%clk 0:00:03]}  Qd1 {[%clk 0:00:06]} 55. Bf2 {[%clk 0:00:04]}  Qd6+ {[%clk 0:00:07]} 56. Kg2 {[%clk 0:00:04]}  Qf4 {[%clk 0:00:07]} 57. R7e4 {[%clk 0:00:04]}  Qd6 {[%clk 0:00:07]} 58. Bg3 {[%clk 0:00:04]}  Qd1 {[%clk 0:00:07]} 59. Re7 {[%clk 0:00:04]}  Qb1 {[%clk 0:00:06]} 60. f4 {[%clk 0:00:04]}  Qd3 {[%clk 0:00:05]} 61. f5+ {[%clk 0:00:04]}  Kh7 {[%clk 0:00:06]} 62. Bf4 {[%clk 0:00:04]}  Qd5+ {[%clk 0:00:06]} 63. Kg3 {[%clk 0:00:04]}  Qd3+ {[%clk 0:00:07]} 64. R2e3 {[%clk 0:00:05]}  Qd1 {[%clk 0:00:07]} 65. Rc7 {[%clk 0:00:05]}  Qg1+ {[%clk 0:00:08]} 66. Kf3 {[%clk 0:00:05]}  Qh1+ {[%clk 0:00:08]} 67. Kf2 {[%clk 0:00:05]}  Qh4+ {[%clk 0:00:07]} 68. Rg3 {[%clk 0:00:05]}  Qh2+ {[%clk 0:00:08]} 69. Kf3 {[%clk 0:00:05]}  Qh1+ {[%clk 0:00:08]} 70. Rg2 {[%clk 0:00:05]}  Qd1+ {[%clk 0:00:09]} 71. Kg3 {[%clk 0:00:06]}  Qd3+ {[%clk 0:00:09]} 72. Kh2 {[%clk 0:00:06]}  Qf3 {[%clk 0:00:09]} 73. Rc4 {[%clk 0:00:05]}  Qd3 {[%clk 0:00:09]} 74. Rb4 {[%clk 0:00:05]}  Qf1 {[%clk 0:00:07]} 75. Bd2 {[%clk 0:00:05]}  Qd1 {[%clk 0:00:06]} 76. Rd4 {[%clk 0:00:05]}  Qb3 {[%clk 0:00:06]} 77. Re4 {[%clk 0:00:05]}  Qf3 {[%clk 0:00:06]} 78. Re3 {[%clk 0:00:05]}  Qd5 {[%clk 0:00:06]} 79. Rh3+ {[%clk 0:00:05]}  Kg8 {[%clk 0:00:06]} 80. Rhg3 {[%clk 0:00:06]}  Qd6 {[%clk 0:00:06]} 81. Rf2 {[%clk 0:00:05]}  Qd4 {[%clk 0:00:06]} 82. Kg2 {[%clk 0:00:05]}  Qe4+ {[%clk 0:00:06]} 83. Kh2 {[%clk 0:00:05]}  Qd4 {[%clk 0:00:06]} 84. Be3 {[%clk 0:00:05]}  Qe4 {[%clk 0:00:06]} 85. g5 {[%clk 0:00:05]}  fxg5 {[%clk 0:00:04]} 86. Bxg5 {[%clk 0:00:06]}  Kf7 {[%clk 0:00:04]} 87. f6 {[%clk 0:00:04]}  g6 {[%clk 0:00:02]} 88. Bf4 {[%clk 0:00:04]}  Qe6 {[%clk 0:00:01]} 89. Bg5 {[%clk 0:00:04]}  Qc4 {[%clk 0:00:01]} 90. Re3 {[%clk 0:00:04]}  Qc8 {[%clk 0:00:01]} 91. Re7+ {[%clk 0:00:04]}  Kf8 {[%clk 0:00:02]} 92. Bh6+ {[%clk 0:00:05]}  Kg8 {[%clk 0:00:03]} 93. f7+ {[%clk 0:00:05]}  Kh7 {[%clk 0:00:03]} 94. f8=Q# {[%clk 0:00:06]} 1-0


[Site "https://www.chess.com"]

[Event "Titled Tuesday Blitz December 13 Late 2022"]
[White "Walentukiewicz, Michal"]
[Black "Winkels, Marcel"]
[WhiteFideId "1126903"]
[BlackFideId "1003887"]
[WhiteElo "2028"]
[BlackElo "1900"]
[Result "1-0"]
[Round "01"]
[TimeControl "180+1"]
[Date "2022.12.14"]
[WhiteClock "0:02:09"]
[BlackClock "0:00:01"]

1. g3 {[%clk 0:02:59]}  c5 {[%clk 0:02:58]} 2. Bg2 {[%clk 0:02:59]}  Nc6 {[%clk 0:02:59]} 3. Nf3 {[%clk 0:02:59]}  g6 {[%clk 0:02:59]} 4. O-O {[%clk 0:03:00]}  Bg7 {[%clk 0:02:59]} 5. c4 {[%clk 0:03:00]}  e5 {[%clk 0:03:00]} 6. Nc3 {[%clk 0:03:00]}  d6 {[%clk 0:03:00]} 7. d3 {[%clk 0:03:00]}  Nge7 {[%clk 0:03:01]} 8. Rb1 {[%clk 0:03:01]}  O-O {[%clk 0:03:00]} 9. a3 {[%clk 0:03:01]}  a5 {[%clk 0:02:59]} 10. Ne1 {[%clk 0:03:01]}  h6 {[%clk 0:02:52]} 11. Nc2 {[%clk 0:03:01]}  Be6 {[%clk 0:02:47]} 12. b4 {[%clk 0:03:01]}  axb4 {[%clk 0:02:46]} 13. axb4 {[%clk 0:03:02]}  Rb8 {[%clk 0:02:27]} 14. bxc5 {[%clk 0:03:01]}  dxc5 {[%clk 0:02:26]} 15. Be3 {[%clk 0:02:58]}  Nd4 {[%clk 0:02:25]} 16. Qd2 {[%clk 0:02:54]}  Qd7 {[%clk 0:02:17]} 17. Ne4 {[%clk 0:02:48]}  Nxc2 {[%clk 0:01:56]} 18. Qxc2 {[%clk 0:02:48]}  b6 {[%clk 0:01:55]} 19. Bxh6 {[%clk 0:02:47]}  f5 {[%clk 0:01:29]} 20. Bxg7 {[%clk 0:02:47]}  Kxg7 {[%clk 0:01:29]} 21. Ng5 {[%clk 0:02:44]}  f4 {[%clk 0:01:26]} 22. Rb2 {[%clk 0:02:40]}  Bf5 {[%clk 0:01:16]} 23. Rfb1 {[%clk 0:02:38]}  Qd6 {[%clk 0:01:08]} 24. Ne4 {[%clk 0:02:35]}  Qc7 {[%clk 0:01:03]} 25. Qc3 {[%clk 0:02:35]}  fxg3 {[%clk 0:01:00]} 26. hxg3 {[%clk 0:02:35]}  Nc6 {[%clk 0:00:53]} 27. e3 {[%clk 0:02:28]}  Nb4 {[%clk 0:00:47]} 28. d4 {[%clk 0:02:26]}  exd4 {[%clk 0:00:44]} 29. exd4 {[%clk 0:02:26]}  Bxe4 {[%clk 0:00:35]} 30. Bxe4 {[%clk 0:02:24]}  Kh7 {[%clk 0:00:31]} 31. Kg2 {[%clk 0:02:20]}  Qg7 {[%clk 0:00:17]} 32. Rh1+ {[%clk 0:02:19]}  Kg8 {[%clk 0:00:16]} 33. Rxb4 {[%clk 0:02:18]}  cxb4 {[%clk 0:00:14]} 34. Bd5+ {[%clk 0:02:18]}  Rf7 {[%clk 0:00:14]} 35. Qxb4 {[%clk 0:02:15]}  Qxd4 {[%clk 0:00:08]} 36. Qd6 {[%clk 0:02:14]}  Qxf2+ {[%clk 0:00:05]} 37. Kh3 {[%clk 0:02:14]}  Kg7 {[%clk 0:00:03]} 38. Qe5+ {[%clk 0:02:12]}  Qf6 {[%clk 0:00:01]} 39. Qxb8 {[%clk 0:02:09]} 1-0


[Site "https://www.chess.com"]